bitfinex-derivatives/quotes_ETHF0:USTF0_20250309
["timestamp","ask_amount","ask_price","bid_price","bid_amount"]
[1741555190085,3.2078,2031.8,2031.3,4.19244]
[1741555190286,0.98457,2031.5,2031.3,4.19245]
[1741555190578,0.98452,2031.6,2031.4,0.98461]
[1741555190786,3.8635,2031.8,2031.3,3.2078]
[1741555190991,0.98458,2031.5,2031.3,4.19245]
[1741555191292,0.98458,2031.5,2031.3,0.98465]
[1741555191491,3.2078,2031.5,2031.1,0.6247]
[1741555191692,0.98476,2031.1,2031.0,0.0073959]
[1741555192392,4.19255,2031.2,2031.0,0.0073959]
[1741555192582,3.2078,2031.2,2031.0,0.9921659]
[1741555192778,3.2078,2031.2,2031.0,0.0073959]
[1741555193181,0.6752,2031.4,2031.1,0.98476]
[1741555193389,0.98469,2031.3,2031.1,0.98474]
[1741555193787,1.65985,2031.4,2031.1,0.98476]
[1741555194183,0.98465,2031.4,2031.0,0.0073959]
[1741555194383,3.2078,2031.5,2031.1,0.98473]
[1741555194583,0.98467,2031.3,2031.1,0.98473]
[1741555194888,3.2078,2031.5,2031.0,0.0073959]
[1741555195087,3.2078,2031.5,2031.1,0.98473]
[1741555195587,3.2078,2031.5,2031.3,0.98465]
[1741555195787,3.2078,2031.5,2031.0,0.0073959]
[1741555195995,3.2078,2031.5,2031.3,0.98464]
[1741555196591,4.19238,2031.5,2031.0,0.0073959]
[1741555196795,4.19238,2031.5,2031.0,0.5001959]
[1741555196984,0.98469,2031.3,2031.0,0.9921859]
[1741555198194,0.98463,2031.4,2031.1,0.98475]
[1741555198892,3.2078,2031.5,2031.0,0.0073959]
[1741555199087,0.98467,2031.3,2031.0,0.9921859]
[1741555199490,0.98476,2031.1,2031.0,0.0073959]
[1741555199695,0.98471,2031.3,2031.0,0.0073959]
[1741555199994,0.98471,2031.3,2031.0,0.9922059]
[1741555200294,3.2078,2031.5,2031.0,0.0073959]
[1741555200597,3.2078,2031.2,2031.0,0.9921759]
[1741555200991,3.2078,2031.2,2031.0,0.0073959]
[1741555201194,0.98476,2031.1,2031.0,0.0073959]
[1741555201794,3.2078,2031.2,2031.0,0.0073959]
[1741555201994,4.19254,2031.2,2031.0,0.0073959]
[1741555202494,3.2078,2031.2,2031.0,0.0073959]
[1741555202697,4.19256,2031.2,2031.0,0.0073959]
[1741555203098,0.98476,2031.1,2031.0,0.0073959]
[1741555205403,2.46203,2031.0,2030.2,2.392]
[1741555205590,2.46264,2030.5,2030.0,0.6371]
[1741555205790,0.98522,2030.2,2030.0,0.6371]
[1741555206096,3.2078,2030.3,2029.8,0.6285]
[1741555206295,3.2078,2030.0,2029.5,2.949]
[1741555206599,0.98534,2029.9,2029.8,0.0073959]
[1741555207997,3.2078,2030.0,2029.0,2.949]
[1741555207998,2.46349,2029.8,2029.0,2.949]
[1741555208200,2.396,2030.1,2029.0,0.6167]
[1741555208201,3.2078,2029.2,2029.0,0.6167]
[1741555208405,3.2078,2029.9,2029.1,2.46434]
[1741555208694,3.2078,2029.5,2029.0,0.6167]
[1741555208888,0.98561,2029.4,2029.2,0.98566]
[1741555209087,3.2078,2029.5,2029.0,0.6240959]
[1741555209305,3.2078,2029.5,2029.1,0.98572]
[1741555209601,3.2078,2029.5,2029.0,3.0210959]
[1741555210491,3.2078,2029.2,2029.0,0.6240959]
[1741555210694,4.1935,2029.2,2029.0,0.6240959]
[1741555210996,3.2078,2029.2,2029.0,1.6098659]
[1741555211800,0.98565,2029.3,2029.0,0.6240959]
[1741555212205,0.98569,2029.2,2029.0,0.6240959]
[1741555212802,3.2078,2029.5,2029.0,0.6240959]
[1741555212803,0.98567,2029.3,2029.0,0.6240959]
[1741555213497,0.98569,2029.2,2029.0,0.6240959]
[1741555213698,0.98567,2029.3,2029.0,0.6240959]
[1741555213900,3.2078,2029.5,2029.0,0.6240959]
[1741555214098,3.2078,2029.5,2029.0,1.6098559]
[1741555214293,0.98564,2029.3,2029.0,1.6098559]
[1741555214501,0.98562,2029.4,2029.0,1.6098559]
[1741555214704,0.98562,2029.4,2029.0,0.6240959]
[1741555214899,3.2078,2029.5,2029.0,0.6240959]
[1741555215100,3.2078,2029.8,2029.0,0.6240959]
[1741555215304,0.98545,2029.7,2029.4,0.98556]
[1741555215496,3.2078,2029.8,2029.4,0.98556]
[1741555215704,0.98544,2029.7,2029.4,0.98559]
[1741555215899,0.98551,2029.6,2029.4,0.98559]
[1741555216203,0.98551,2029.6,2029.3,0.9856]
[1741555216908,0.98551,2029.6,2029.0,3.5812859]
[1741555217202,0.98551,2029.6,2029.3,0.98559]
[1741555217809,0.98545,2029.7,2029.5,0.98554]
[1741555218407,0.98549,2029.6,2029.4,0.98556]
[1741555218905,3.2078,2029.8,2029.7,0.98544]
[1741555219312,3.2078,2030.1,2029.5,3.2078]
[1741555219506,3.2078,2030.1,2029.6,0.6549]
[1741555219708,3.2078,2029.8,2029.6,0.6549]
[1741555219909,4.1932,2029.8,2029.6,0.6549]
[1741555220206,4.1932,2029.8,2029.6,1.64037]
[1741555220510,0.98544,2029.7,2029.6,0.6549]
[1741555220705,4.19323,2029.8,2029.6,0.6549]
[1741555221203,3.2078,2029.8,2029.6,1.64037]
[1741555221404,0.98541,2029.8,2029.6,1.64037]
[1741555221710,0.98538,2029.9,2029.6,1.64035]
[1741555222009,0.98538,2029.9,2029.7,0.98544]
[1741555222600,0.98538,2029.9,2029.6,1.64035]
[1741555223913,0.9854,2029.8,2029.6,1.64035]
[1741555224100,0.98544,2029.7,2029.6,0.6549]
[1741555224411,0.98561,2029.4,2029.2,3.93466]
[1741555224599,3.2078,2029.7,2029.2,2.949]
[1741555224799,0.98559,2029.4,2029.2,3.93466]
[1741555225200,0.98556,2029.5,2029.3,0.98564]
[1741555225399,3.2078,2029.7,2029.3,0.98564]
[1741555225596,0.98557,2029.5,2029.3,0.98559]
[1741555226002,3.2078,2029.7,2029.2,2.949]
[1741555226211,0.98549,2029.6,2029.3,0.9856]
[1741555226402,0.98555,2029.5,2029.3,0.9856]
[1741555227502,0.98552,2029.6,2029.4,0.98558]
[1741555227704,0.98554,2029.5,2029.3,0.9856]
[1741555228301,0.98551,2029.6,2029.2,2.949]
[1741555228508,0.98549,2029.6,2029.3,0.9856]
[1741555228705,0.98554,2029.5,2029.3,0.9856]
[1741555229305,0.9855,2029.6,2029.4,0.98557]
[1741555229510,0.9855,2029.6,2029.3,0.9856]
[1741555229712,0.6687,2030.1,2029.2,2.46417]
[1741555229908,0.6687,2030.1,2029.6,0.98545]
[1741555230108,0.6687,2030.1,2029.1,6.2412]
[1741555230109,3.2078,2029.7,2029.1,6.2412]
[1741555230302,0.98551,2029.6,2029.1,6.2412]
[1741555230506,0.98551,2029.6,2029.4,0.98558]
[1741555230811,4.19328,2029.7,2029.1,8.70549]
[1741555231013,4.19328,2029.7,2029.4,0.98555]
[1741555232008,3.2078,2029.7,2029.4,0.98555]
[1741555232208,0.9855,2029.6,2029.4,0.98555]
[1741555232407,3.2078,2029.7,2029.2,0.98564]
[1741555232408,0.98558,2029.5,2029.2,0.98564]
[1741555232606,3.2078,2029.7,2029.1,6.2362]
[1741555232819,0.98553,2029.6,2029.4,0.98557]
[1741555233013,0.98555,2029.5,2029.3,0.98561]
[1741555233207,0.98555,2029.5,2029.1,6.2362]
[1741555233412,0.98555,2029.5,2029.3,0.9856]
[1741555233608,0.98555,2029.5,2029.1,6.2362]
[1741555233914,0.98551,2029.6,2029.4,0.98559]
[1741555234408,3.2078,2029.7,2029.1,6.2362]
[1741555234609,0.98553,2029.6,2029.4,0.98557]
[1741555235213,0.98554,2029.5,2029.4,0.98557]
[1741555235415,0.98554,2029.5,2029.1,6.2362]
[1741555235715,0.98554,2029.5,2029.3,0.9856]
[1741555236113,3.2078,2029.7,2029.1,6.2362]
[1741555236416,0.98558,2029.5,2029.3,0.98561]
[1741555238010,3.2078,2029.7,2029.3,0.98561]
[1741555238011,3.2078,2029.7,2029.3,0.9856]
[1741555238214,0.98559,2029.4,2029.3,0.9856]
[1741555238609,0.98558,2029.5,2029.3,0.9856]
[1741555238909,0.98559,2029.4,2029.3,0.9856]
[1741555239115,0.98558,2029.5,2029.1,6.2362]
[1741555240117,0.98558,2029.5,2029.3,0.98561]
[1741555240313,0.98559,2029.4,2029.3,0.98561]
[1741555240518,0.98557,2029.5,2029.3,0.98561]
[1741555242519,0.98557,2029.5,2029.3,0.9856]
[1741555243011,0.98557,2029.5,2029.1,8.70053]
[1741555243315,2.46373,2029.6,2029.0,0.6494959]
[1741555243518,0.98573,2029.1,2029.0,0.0073959]
[1741555244913,0.98573,2029.1,2028.5,0.6178]
[1741555244914,0.98598,2028.6,2028.5,0.6178]
[1741555245116,7.4857959,2029.3,2028.3,2.363]
[1741555245117,3.2078,2028.8,2028.3,2.363]
[1741555245323,3.2078,2028.8,2028.4,0.98605]
[1741555245712,0.98602,2028.5,2028.4,0.98605]
[1741555246021,0.98602,2028.5,2028.3,0.98608]
[1741555246220,0.98612,2028.3,2028.2,0.0073959]
[1741555254415,3.2078,2028.5,2028.2,0.0073959]
[1741555254621,0.98612,2028.4,2028.2,0.9935359]
[1741555254818,0.98612,2028.3,2028.2,0.9935359]
[1741555255016,0.98612,2028.3,2028.2,0.0073959]
[1741555256921,3.2078,2028.5,2028.2,0.0073959]
[1741555257119,3.2078,2029.4,2028.4,3.2078]
[1741555257317,1.3137,2029.7,2029.2,0.98568]
[1741555257519,3.2078,2030.3,2029.4,2.46397]
[1741555257719,3.2078,2030.3,2029.7,3.2078]
[1741555257921,3.2078,2030.6,2030.0,3.2078]
[1741555258125,0.98526,2030.1,2029.7,0.98542]
[1741555258523,0.9926559,2030.1,2029.7,0.9928159]
[1741555258922,0.9926559,2030.1,2029.7,0.0073959]
[1741555259426,0.9926559,2030.1,2029.7,0.9928059]
[1741555259625,0.9853,2030.0,2029.7,0.9928059]
[1741555260223,0.98539,2029.8,2029.7,0.0073959]
[1741555261323,0.98561,2029.4,2029.1,2.363]
[1741555261530,3.2078,2029.5,2029.3,0.98561]
[1741555261722,3.2078,2029.5,2029.0,3.2078]
[1741555261723,4.19336,2029.5,2029.2,0.98566]
[1741555262623,3.2078,2029.5,2029.1,0.0073959]
[1741555262926,0.98597,2028.7,2028.4,4.19385]
[1741555263226,0.98598,2028.6,2028.4,0.98605]
[1741555263525,0.98598,2028.6,2028.2,1.2848]
[1741555263526,3.2078,2028.8,2028.2,1.2848]
[1741555263726,0.98595,2028.7,2028.5,0.98598]
[1741555263933,3.2078,2028.8,2028.3,0.98609]
[1741555264228,0.98603,2028.5,2028.4,0.0073959]
[1741555264420,4.19383,2028.5,2028.4,0.0073959]
[1741555264619,4.19383,2028.5,2028.0,0.98624]
[1741555264620,3.2078,2028.5,2028.0,0.98624]
[1741555264824,0.98617,2028.3,2028.0,0.98624]
[1741555265421,0.98617,2028.3,2028.1,0.98621]
[1741555265915,0.98617,2028.3,2028.0,0.0073959]
[1741555266327,0.98617,2028.3,2028.1,0.9862]
[1741555266520,3.2078,2028.5,2028.1,0.9862]
[1741555266721,0.98607,2028.4,2028.1,0.9862]
[1741555267024,3.2078,2028.5,2028.1,0.9862]
[1741555267423,0.98614,2028.3,2028.1,0.9862]
[1741555268126,0.98615,2028.3,2028.1,0.98621]
[1741555268527,0.98609,2028.4,2028.2,0.98614]
[1741555268831,3.2078,2028.5,2028.4,0.98607]
[1741555269222,4.19385,2028.5,2028.3,0.9861]
[1741555269626,3.2078,2028.5,2028.0,0.0073959]
[1741555269834,6.1921959,2028.8,2028.1,2.46555]
[1741555270032,0.98595,2028.7,2028.5,0.986]
[1741555270531,7.1781159,2028.8,2028.2,2.46543]
[1741555270731,0.98593,2028.7,2028.5,0.986]
[1741555271030,3.8291959,2028.8,2028.1,3.2078]
[1741555271435,6.2939359,2028.8,2028.1,3.2078]
[1741555271730,0.9861,2028.4,2028.1,4.19399]
[1741555272836,0.98614,2028.3,2028.1,4.19399]
[1741555273041,0.98611,2028.4,2028.1,4.19399]
[1741555273536,0.98612,2028.3,2028.1,4.19399]
[1741555274434,0.98622,2028.1,2028.0,0.0073959]
[1741555274828,0.98654,2027.5,2027.3,4.85579]
[1741555275139,0.98654,2027.5,2027.3,4.19439]
[1741555275325,0.9865,2027.6,2027.4,0.98656]
[1741555276041,0.0073959,2027.7,2027.3,3.21271847]
[1741555276231,0.98656,2027.4,2027.3,0.00491847]
[1741555276534,4.19436,2027.4,2027.3,0.00491847]
[1741555277632,0.98671,2027.1,2026.9,0.98676]
[1741555278249,3.2078,2027.4,2026.7,0.6579]
[1741555278447,0.98682,2026.9,2026.7,1.64479]
[1741555278746,0.98685,2026.8,2026.6,0.6501]
[1741555278946,3.2078,2027.0,2026.9,0.9868]
[1741555279151,3.2078,2027.0,2026.6,0.6501]
[1741555279450,4.19456,2027.0,2026.8,0.98684]
[1741555279654,4.19456,2027.0,2026.7,0.98687]
[1741555279950,4.19456,2027.0,2026.3,0.6535]
[1741555279951,0.987,2026.5,2026.3,0.6535]
[1741555280338,0.0073959,2026.6,2026.3,1.64059]
[1741555280642,0.0073959,2026.6,2026.5,0.987]
[1741555283050,0.0073959,2026.6,2026.3,0.6535]
[1741555283352,0.0073959,2026.6,2026.4,0.98701]
[1741555284248,0.0073959,2026.6,2026.3,0.6535]
[1741555284741,0.0073959,2026.6,2026.5,0.987]
[1741555285651,3.2078,2026.8,2026.3,0.6535]
[1741555285951,4.19465,2026.8,2026.5,0.98697]
[1741555286154,3.2078,2026.8,2026.6,0.98691]
[1741555286341,4.19466,2026.8,2026.6,0.98691]
[1741555286750,4.19466,2026.8,2026.5,0.98698]
[1741555286751,0.98691,2026.7,2026.5,0.98698]
[1741555286951,4.19468,2026.8,2026.5,0.98698]
[1741555287756,3.2078,2026.8,2026.4,0.98702]
[1741555288144,5.67501,2026.8,2026.3,0.6608959]
[1741555288341,0.98705,2026.4,2026.3,0.0073959]
[1741555288846,2.365,2026.4,2025.5,0.08588892]
[1741555289149,0.98731,2025.9,2025.7,0.98734]
[1741555289854,0.98732,2025.9,2025.7,0.98738]
[1741555290254,3.2078,2026.2,2025.6,0.6579]
[1741555290757,3.2078,2026.2,2026.0,0.9872]
[1741555291057,4.19496,2026.2,2026.0,0.98722]
[1741555291247,3.2078,2026.2,2025.6,6.33425]
[1741555291447,0.98719,2026.1,2025.9,0.98726]
[1741555292248,0.98725,2026.0,2025.6,3.8657]
[1741555292456,3.2078,2026.2,2025.6,3.8657]
[1741555292754,0.98726,2026.0,2025.6,3.8657]
[1741555293155,0.98726,2026.0,2025.7,0.98734]
[1741555293358,0.98726,2026.0,2025.8,0.98732]
[1741555293553,0.98726,2026.0,2025.6,0.6579]
[1741555293554,3.2078,2026.2,2025.6,0.6579]
[1741555293748,0.9872,2026.1,2025.6,3.8657]
[1741555293949,0.9872,2026.1,2025.8,0.9873]
[1741555294154,3.2078,2026.2,2025.6,3.8657]
[1741555294155,3.2078,2026.2,2026.0,0.98722]
[1741555294658,4.19496,2026.2,2025.6,9.28327]
[1741555294849,0.98721,2026.1,2025.9,0.98726]
[1741555295051,4.19498,2026.2,2025.9,0.98726]
[1741555295461,0.9872,2026.1,2025.9,0.98726]
[1741555295748,4.19498,2026.2,2025.7,0.98739]
[1741555295954,3.2078,2026.2,2025.8,0.98734]
[1741555296154,0.98719,2026.1,2025.8,0.98734]
[1741555296353,3.2078,2026.2,2025.6,6.8147]
[1741555296555,0.98725,2026.0,2025.8,0.98733]
[1741555296756,0.98725,2026.0,2025.7,0.98735]
[1741555297156,0.98725,2026.0,2025.8,0.98732]
[1741555297365,3.2078,2026.2,2025.7,0.98734]
[1741555297553,0.9873,2025.9,2025.7,0.98734]
[1741555297755,5.67577,2026.2,2025.6,6.8147]
[1741555297955,0.98733,2025.9,2025.6,7.8021]
[1741555298161,5.67577,2026.2,2025.6,1.64531]
[1741555298355,0.98732,2025.9,2025.7,0.98737]
[1741555298659,0.98732,2025.9,2025.7,0.98736]
[1741555298852,5.67577,2026.2,2025.6,0.6579]
[1741555299053,0.98731,2025.9,2025.7,0.98739]
[1741555299963,0.98731,2025.9,2025.6,0.6579]
[1741555300258,0.98731,2025.9,2025.7,0.98735]
[1741555300561,0.98739,2025.7,2025.6,0.6579]
[1741555301062,5.6834459,2025.9,2025.4,0.6521]
[1741555301259,5.6834459,2025.9,2025.4,1.63962]
[1741555301260,0.98748,2025.5,2025.4,1.63962]
[1741555301455,0.98748,2025.5,2025.4,0.6521]
[1741555301660,0.98748,2025.5,2025.4,1.63963]
[1741555301955,0.98763,2025.2,2025.1,2.949]
[1741555302154,3.2078,2025.3,2024.7,0.6538]
[1741555302360,4.1956,2024.9,2024.7,0.6538]
[1741555302752,0.98783,2024.8,2024.7,0.6538]
[1741555302954,3.2078,2025.2,2024.7,0.6538]
[1741555303857,0.98775,2025.0,2024.8,0.98782]
[1741555304057,0.98775,2025.0,2024.7,1.64164]
[1741555304256,0.9878,2024.9,2024.7,0.6538]
[1741555304561,4.19545,2025.2,2024.9,0.98774]
[1741555304859,3.2078,2025.5,2025.4,0.98753]
[1741555305157,0.98751,2025.5,2025.2,0.98759]
[1741555305964,3.2078,2025.7,2025.2,0.98759]
[1741555306164,3.2078,2025.7,2025.0,6.92049]
[1741555306356,3.2078,2025.7,2025.1,2.46921]
[1741555306563,0.98744,2025.6,2025.4,0.98752]
[1741555306758,3.2078,2025.7,2025.1,2.46921]
[1741555307262,3.2078,2025.7,2025.4,0.9875]
[1741555307263,4.19522,2025.7,2025.4,0.9875]
[1741555307863,0.0073959,2025.9,2025.4,3.2078]
[1741555308061,0.0073959,2025.9,2025.5,1.2318]
[1741555308368,0.98734,2025.8,2025.6,0.98742]
[1741555308565,0.98734,2025.8,2025.5,1.2318]
[1741555308763,0.0073959,2025.9,2025.5,1.2318]
[1741555309066,0.0073959,2025.9,2025.7,0.98736]
[1741555309668,0.0073959,2025.9,2025.8,0.98734]
[1741555309868,0.0073959,2025.9,2025.7,4.19516]
[1741555309869,0.9947159,2025.9,2025.7,4.19516]
[1741555310062,0.9946959,2025.9,2025.7,4.19516]
[1741555310472,0.9946959,2025.9,2025.7,0.98736]
[1741555310777,0.0073959,2025.9,2025.7,0.98736]
[1741555310964,0.9946859,2025.9,2025.7,0.98736]
[1741555311164,0.0073959,2025.9,2025.7,0.98736]
[1741555311364,0.9946859,2025.9,2025.7,0.98736]
[1741555311666,0.9946859,2025.9,2025.8,0.98734]
[1741555311667,0.0073959,2025.9,2025.8,0.98734]
[1741555312267,0.0073959,2025.9,2025.5,1.2318]
[1741555312467,4.19524,2025.6,2025.5,1.2318]
[1741555312666,5.6834559,2025.9,2025.2,2.366]
[1741555312867,5.6834559,2025.9,2025.3,0.98758]
[1741555313062,0.98749,2025.5,2025.3,0.98758]
[1741555313267,3.2151959,2025.9,2025.5,0.98746]
[1741555313465,0.98739,2025.7,2025.1,3.76018]
[1741555313672,0.98747,2025.6,2025.4,0.98751]
[1741555313867,3.2151959,2025.9,2025.1,3.76018]
[1741555314167,0.98756,2025.4,2025.2,0.98761]
[1741555314372,3.2078,2025.3,2025.1,0.6742]
[1741555314574,4.19541,2025.3,2025.1,1.66186]
[1741555314767,0.98763,2025.2,2025.1,1.66188]
[1741555314970,4.1954,2025.3,2025.1,1.66188]
[1741555315268,4.19538,2025.3,2025.1,1.66184]
[1741555315870,2.366,2025.6,2025.1,0.6742]
[1741555316075,0.9875,2025.5,2025.3,0.98756]
[1741555316277,3.2078,2025.7,2025.1,1.3314]
[1741555316478,0.98751,2025.5,2025.3,0.98757]
[1741555316779,3.2078,2025.7,2025.2,0.9876]
[1741555317371,0.98754,2025.4,2025.2,0.9876]
[1741555319085,0.98749,2025.5,2025.3,0.98756]
[1741555320379,3.2078,2025.7,2025.1,1.3314]
[1741555320580,3.2078,2025.7,2025.3,3.2078]
[1741555320776,3.2078,2025.7,2025.6,0.98744]
[1741555321082,3.2078,2025.7,2025.3,3.2078]
[1741555321578,3.2078,2025.7,2025.6,0.98744]
[1741555322688,0.9947159,2025.9,2025.7,0.98738]
[1741555322984,0.9947159,2025.9,2025.8,0.98734]
[1741555322985,0.0073959,2025.9,2025.8,0.98734]
[1741555324079,0.98734,2025.8,2025.7,0.6543]
[1741555324272,0.0073959,2025.9,2025.7,0.6543]
[1741555324478,0.98734,2025.8,2025.7,0.6543]
[1741555324878,2.4756559,2025.9,2025.3,4.19535]
[1741555325079,2.4756559,2025.9,2025.3,3.2078]
[1741555325280,0.9875,2025.5,2025.2,2.366]
[1741555325481,0.9875,2025.5,2025.1,1.2897]
[1741555325482,3.2078,2025.4,2024.9,3.2078]
[1741555325681,0.9877,2025.1,2024.8,0.98779]
[1741555325980,0.9877,2025.1,2024.9,0.98776]
[1741555326575,3.2078,2025.4,2024.7,1.2897]
[1741555326775,0.98765,2025.2,2025.0,0.98769]
[1741555327178,3.2078,2025.4,2024.4,3.2078]
[1741555327487,0.98783,2024.9,2024.6,0.9879]
[1741555327683,3.8541,2025.1,2024.6,0.9879]
[1741555327980,0.98766,2025.2,2024.5,3.2078]
[1741555328285,0.9877,2025.1,2024.8,0.98779]
[1741555328481,3.0379,2025.3,2024.9,0.98776]
[1741555328687,0.98768,2025.1,2024.9,0.98776]
[1741555329178,3.0379,2025.3,2024.5,5.6777]
[1741555329377,0.98769,2025.1,2024.5,3.2078]
[1741555329576,0.98769,2025.1,2024.9,0.98776]
[1741555329777,0.98769,2025.1,2024.8,0.98779]
[1741555330285,0.98769,2025.1,2024.5,3.2078]
[1741555330286,0.98774,2025.0,2024.7,0.98783]
[1741555330485,0.98774,2025.0,2024.5,3.2078]
[1741555330685,0.9877,2025.1,2024.8,0.98782]
[1741555331275,0.98771,2025.1,2024.8,0.9878]
[1741555332277,3.0379,2025.3,2024.8,0.9878]
[1741555332476,3.0379,2025.3,2024.2,3.7022]
[1741555332477,0.98807,2024.3,2024.2,3.7022]
[1741555332682,3.2078,2024.4,2023.7,1.2705]
[1741555332882,3.2078,2024.1,2023.5,3.2078]
[1741555333081,3.2078,2023.8,2023.3,2.949]
[1741555333283,3.2078,2023.8,2023.5,0.98842]
[1741555333482,0.98824,2024.0,2023.4,0.98849]
[1741555333679,0.98824,2024.0,2023.4,1.62469]
[1741555333881,3.2078,2023.9,2023.5,0.6318]
[1741555334279,0.9885,2023.5,2023.1,0.6434]
[1741555334485,0.98853,2023.4,2023.1,0.6434]
[1741555334989,3.2078,2023.6,2023.0,19.74423443]
[1741555334990,0.98866,2023.1,2023.0,19.74423443]
[1741555335186,0.0073959,2023.5,2023.0,0.6318]
[1741555335585,0.0073959,2023.5,2023.0,3.5808]
[1741555335779,0.0073959,2023.5,2023.2,3.2078]
[1741555336085,0.0073959,2023.5,2023.0,1.1262]
[1741555336290,3.2078,2023.4,2023.0,0.6318]
[1741555336689,0.9887,2023.0,2022.9,0.6429]
[1741555337198,3.2078,2023.1,2022.8,2.949]
[1741555337788,0.98875,2022.9,2022.8,2.949]
[1741555338190,3.2078,2023.1,2022.6,0.6457]
[1741555338391,3.2078,2022.8,2022.1,5.9600886]
[1741555338587,3.2078,2022.8,2022.1,7.2321886]
[1741555338892,0.98894,2022.6,2022.1,8.2212886]
[1741555339094,0.9891,2022.2,2022.1,0.6457]
[1741555339283,0.9891,2022.2,2021.7,0.4952]
[1741555339284,3.2078,2022.2,2021.7,0.6264]
[1741555339488,0.98921,2022.0,2021.7,0.6264]
[1741555339686,3.2078,2022.2,2021.6,3.2078]
[1741555339989,3.2078,2022.2,2021.3,0.4944]
[1741555339990,0.98949,2021.4,2021.3,0.4944]
[1741555340293,3.2078,2021.7,2021.0,22.32023443]
[1741555340492,3.2078,2021.7,2021.3,0.98951]
[1741555340695,4.19714,2021.7,2021.1,2.403]
[1741555340988,3.2078,2021.7,2021.0,3.2078]
[1741555341188,6.0092,2022.1,2021.3,3.2078]
[1741555341382,3.2078,2022.2,2021.7,0.98932]
[1741555341583,3.2078,2022.2,2021.3,3.2078]
[1741555341795,4.19693,2022.2,2021.7,0.98933]
[1741555342096,3.2078,2022.2,2021.4,0.6371]
[1741555342284,3.2078,2022.5,2021.9,3.2078]
[1741555342490,3.2078,2022.5,2022.0,0.98915]
[1741555342491,4.19677,2022.5,2022.0,0.98915]
[1741555342795,3.2078,2022.5,2021.9,3.2078]
[1741555342991,4.19677,2022.5,2022.1,0.98914]
[1741555343197,0.98907,2022.3,2021.8,2.41]
[1741555343399,3.2078,2022.5,2021.8,2.41]
[1741555343400,0.99643455,2022.4,2022.0,0.98918]
[1741555344095,0.00741455,2022.4,2021.9,0.98923]
[1741555344286,0.9891,2022.2,2021.6,6.1568]
[1741555344489,4.19693,2022.2,2021.8,0.98927]
[1741555345092,3.2078,2022.2,2021.9,0.98921]
[1741555345291,4.19692,2022.2,2021.9,0.98921]
[1741555345491,3.2078,2022.2,2021.9,0.98923]
[1741555345686,3.2078,2022.2,2022.0,0.98915]
[1741555345999,3.2078,2022.2,2022.1,0.98914]
[1741555346397,0.00741455,2022.4,2022.3,0.98905]
[1741555347093,0.00741455,2022.4,2022.1,0.6749]
[1741555347295,0.00741455,2022.4,2022.3,0.98905]
[1741555348596,4.55e-06,2022.4,2022.3,8.19685]
[1741555349195,4.55e-06,2022.4,2022.3,14.48748391]
[1741555349392,7.2864,2023.5,2022.4,2.4725]
[1741555349393,3.8459,2023.5,2022.4,2.4725]
[1741555349693,3.2078,2023.5,2023.4,0.98851]
[1741555349893,3.2078,2023.5,2023.0,2.43]
[1741555350093,0.98857,2023.3,2023.0,3.4187]
[1741555350289,0.98856,2023.3,2023.0,3.4187]
[1741555350489,3.2078,2023.5,2023.1,0.98862]
[1741555350490,0.00741455,2023.4,2023.1,0.98862]
[1741555350691,0.00741455,2023.4,2022.9,0.00741455]
[1741555351096,0.00741455,2023.4,2023.0,0.98869]
[1741555351302,0.9886,2023.3,2022.9,0.99613455]
[1741555351602,0.98856,2023.3,2023.0,0.9887]
[1741555352095,0.00741455,2023.4,2022.9,0.00741455]
[1741555352700,0.00741455,2023.4,2023.3,0.98856]
[1741555353394,0.00741455,2023.4,2023.3,4.19636]
[1741555355296,3.2078,2024.1,2023.3,7.2078]
[1741555355603,5.6438,2024.5,2023.7,3.2078]
[1741555355796,5.6438,2024.5,2024.1,0.98815]
[1741555355991,0.98804,2024.4,2024.1,0.98814]
[1741555356190,0.98804,2024.4,2023.8,2.47072]
[1741555356191,3.2078,2024.5,2023.9,2.47067]
[1741555356390,3.2078,2024.5,2023.8,2.47079]
[1741555356596,0.00741455,2024.4,2024.3,0.98806]
[1741555356897,0.00741455,2024.4,2024.0,0.00741455]
[1741555357099,0.00741455,2024.4,2024.3,0.98807]
[1741555357600,0.00741455,2024.4,2024.0,3.82741455]
[1741555357808,0.00741455,2024.4,2024.0,0.61961455]
[1741555358198,0.99545455,2024.4,2024.1,0.98814]
[1741555358399,0.00741455,2024.4,2024.0,0.61961455]
[1741555358697,0.98808,2024.3,2024.1,0.98815]
[1741555358901,0.98809,2024.3,2024.1,0.98815]
[1741555359406,0.00741455,2024.4,2024.0,0.61961455]
[1741555360002,0.00741455,2024.4,2024.3,0.98807]
[1741555362696,4.19551,2025.1,2024.8,0.98781]
[1741555363005,5.6338,2025.4,2024.5,2.428]
[1741555363302,1.28,2025.5,2025.1,0.98764]
[1741555363502,3.2078,2025.4,2025.2,0.98762]
[1741555363703,3.2078,2025.4,2024.9,2.46942]
[1741555364004,3.2078,2025.4,2025.2,0.98763]
[1741555364204,3.2078,2025.4,2025.3,0.98758]
[1741555366400,0.00741455,2025.5,2025.4,0.98753]
[1741555366700,0.99489455,2025.5,2025.3,0.98756]
[1741555366907,0.00741455,2025.5,2025.4,0.98753]
[1741555367201,0.00741455,2025.5,2025.1,0.00741455]
[1741555367401,0.98763,2025.2,2025.1,0.00741455]
[1741555367605,0.98782,2024.9,2024.4,5.67781]
[1741555367795,0.98782,2024.9,2024.7,0.98783]
[1741555367997,0.98782,2024.9,2024.4,5.67781]
[1741555368398,3.2078,2025.0,2024.7,0.98785]
[1741555368703,0.98783,2024.8,2024.7,0.98785]
[1741555370200,3.2078,2025.0,2024.7,0.98785]